Cogmind - Beta 16 @@@ ROGUE MODE // 2025.11.28 @ 19:01:13 Player: lepire Result: Destroyed by G-34 Mercenary with Small Laser Performance ------------- Evolutions (0) 0 Regions Visited (1) 200 Robots Destroyed (16) 80 Value Destroyed (488) 488 Prototype IDs (0) 0 Alien Tech Used (0) 0 Bonus (0) 0 TOTAL SCORE: 768 Bonus ------- None Cogmind --------- Core Integrity 0/250 Matter 239/300 Energy 142/250 System Corruption 0% Temperature Hot (268) Movement Treading (480) Ox4 Location -10/Materials Parts ------- > --- POWER (1) -------- Ion Engine > --- PROPULSION (2) --- Light Treads Wheel > --- UTILITY (2) ------ Huge Storage Unit > --- WEAPON (2) ------- Small Laser Assault Rifle > --- INVENTORY (25) --- Small Storage Unit Seismic Detector Hacking Suite Peak State ------------ > --- POWER ------------ Light Nuclear Core > --- PROPULSION ------- Light Treads Wheel > --- UTILITY ---------- Small Storage Unit Huge Storage Unit > --- WEAPON ----------- Medium Laser Assault Rifle > --- INVENTORY -------- Ion Engine Small Laser [Rating: 9] Favorites ----------- Power Light Nuclear Core Engine Ion Engine Power Core Light Nuclear Core Propulsion Light Treads Treads Light Treads Leg Aluminum Leg Wheel Wheel Utility Small Storage Unit Storage Small Storage Unit Weapon Assault Rifle Energy Gun Medium Laser Ballistic Gun Assault Rifle Build | -11 -10 ------- Run | Yrd Mat Slots Evolved . | . . Power . | . . Propulsion . | . . Utility . | . . Weapon . | . . Parts Attached 10 | 3 7 Power 2 | . 2 Engine 1 | . 1 Core 1 | . 1 Reactor . | . . Propulsion 4 | 2 2 Treads 2 | 1 1 Leg . | . . Wheel 2 | 1 1 Hover . | . . Flight . | . . Utility 1 | . 1 Device . | . . Storage 1 | . 1 Processor . | . . Hackware . | . . Protection . | . . Artifact . | . . Weapon 3 | 1 2 Energy Gun 2 | . 2 Energy Cannon . | . . Ballistic Gun 1 | 1 . Ballistic Cannon . | . . Launcher . | . . Special Weapon . | . . Impact Weapon . | . . Slashing Weapon . | . . Piercing Weapon . | . . Special Melee Weapon . | . . Unidentified Prototypes . | . . Parts Lost 5 | . 5 Power 1 | . 1 Propulsion 2 | . 2 Utility . | . . Weapon 2 | . 2 Highest Loss Streak 2 | . 2 To Critical Strikes . | . . Average Backups 3 | 6 3 Power . | 1 . Propulsion 1 | 4 . Utility . | . . Weapon . | 1 . Tool/Special . | . . Unused Backups 6 | . 6 Power 2 | . 2 Propulsion . | . . Utility 4 | . 4 Weapon . | . . Tool/Special . | . . Average Slot Usage (%) 84 | . 84 Engine 4 | . 4 Core 9 | . 9 Treads 13 | . 13 Wheel 13 | . 13 Storage 14 | . 14 Energy Gun 14 | . 14 Ballistic Gun 14 | . 14 Peak Build Rating 9 | 6 9 Average Rating 7 | 6 7 On Entrance 6 | 6 6 Avg Prop Armor Cover (%) 12 | . 12 Naked Turns . | . . Heaviest Build 94 | 14 94 Greatest Support 20 | 20 20 Greatest Overweight (x) 9 | . 9 Average Overweight (x) 1 | . 1 Largest Inventory Capacity 25 | 8 25 Average Capacity 12 | 8 12 Most Carried 6 | 6 5 Average Carried 3 | 5 3 Final Capacity 25 | 8 25 Final Carried 4 | 4 3 Class Distribution -------------------- 100% | Mutant Dominant Class ---------------- Mutant | -10/Materials Resources | -11 -10 ----------- Run | Yrd Mat Matter Collected 425 | 220 205 Remotely . | . . Salvage Created 539 | . 539 Parts 20 | . 20 Haulers Intercepted . | . . Recyclers Shooed 2 | . 2 Parts Field Recycled . | . . Retrieved Matter . | . . Parts Self-Destructed . | . . Prevented . | . . Parts Restored . | . . Kills | -11 -10 ------- Run | Yrd Mat Combat Hostiles Destroyed 14 | . 14 Guns 14 | . 14 Classes Destroyed 4 | . 4 Operator 1 | . 1 Watcher 1 | . 1 Swarmer 3 | . 3 Grunt 11 | . 11 Best Kill Streak 5 | . 5 Combat Bots Only 5 | . 5 Max Kills in Single Turn 1 | . 1 Gunslinging . | . . Exploded . | . . Melee . | . . Uniques/NPCs Destroyed . | . . Combat | -11 -10 -------- Run | Yrd Mat Hostile Shots Fired 109 | . 109 Missed 26 | . 26 Hits 83 | . 83 Projectile 83 | . 83 Critical Strikes 1 | . 1 Damage Taken 925 | . 925 Core 258 | . 258 Absorbed by Shields . | . . Core Remaining (%) 100 | 100 . Volleys Fired 72 | . 72 Largest 2 | . 2 Hottest 70 | . 70 Shots Fired 138 | . 138 Gun 138 | . 138 Cannon . | . . Launcher . | . . Special . | . . Kinetic 67 | . 67 Thermal 63 | . 63 Explosive . | . . Electromagnetic 8 | . 8 Robot Hit Streak 14 | . 14 Robot Miss Streak 3 | . 3 Penetration Max . | . . Secondary Targets 2 | . 2 Max Gunslinging Chain 1 | . 1 Shots Hit Robots 71 | . 71 Core Hits 31 | . 31 Critical Kills 1 | . 1 Critical Parts Destroyed . | . . Critical Strikes 4 | . 4 Burn 3 | . 3 Destroy 1 | . 1 Melee Attacks . | . . Impact . | . . Slashing . | . . Piercing . | . . Sneak Attacks . | . . Combat Hostiles . | . . Follow-up Attacks . | . . Damage Inflicted 909 | . 909 Guns 909 | . 909 Cannons . | . . Explosions . | . . Melee . | . . Ramming . | . . Kinetic 471 | . 471 Thermal 438 | . 438 Explosive . | . . Electromagnetic . | . . Impact . | . . Slashing . | . . Piercing . | . . Highest Corruption . | . . Average Corruption . | . . Corruption Purged . | . . Corruption Blocked . | . . Overload Shots . | . . Overflow Damage . | . . Projectiles . | . . Explosions . | . . Melee . | . . Knockbacks . | . . Impact . | . . Kinetic . | . . Secondary . | . . Self-Inflicted Damage . | . . Shots . | . . Rammed . | . . Targets Rammed . | . . Kicked . | . . Crushed . | . . Highest Temperature 279 | . 279 Average Temperature 82 | . 82 Received Heat Transfer 354 | . 354 Effects 3 | . 3 Energy Bleed 1 | . 1 Interference 2 | . 2 Siege Activations . | . . Martial Activations . | . . Shielding Activations . | . . Robots Disrupted . | . . Combat Hostiles . | . . Robots Corrupted . | . . Combat Hostiles . | . . Parts Fried . | . . Impact Corruptions . | . . Robots Melted . | . . Combat Hostiles . | . . Parts Melted . | . . Heat Transferred 1435 | . 1435 Parts Sabotaged . | . . Parts Stolen . | . . Parts Stripped . | . . Power Chain Reactions . | . . Alert | -11 -10 ------- Run | Yrd Mat Maximum Alert Level 1 | . 1 Low Security (%) 95 | 100 95 Level 1 4 | . 4 Level 2 . | . . Level 3 . | . . Level 4 . | . . Level 5 . | . . High Security . | . . Max Security . | . . Peak Influence 231 | . 231 Initial . | . . Average 92 | . 94 Influence Increases 467 | . 467 Destroy 0b10 Robot/C 280 | . 280 Destroy 0b10 Robot/NC 10 | . 10 Destroy Leader 82 | . 82 Successful Hack 5 | . 5 Lose Combat Pursuer 90 | . 90 Influence Decreases 244 | . 244 Time Decay 204 | . 204 Lost Part 40 | . 40 Squads Dispatched 3 | . 3 Investigation 1 | . 1 Extermination . | . . Reinforcement 2 | . 2 Assault . | . . Garrison . | . . Intercept . | . . Searches Triggered . | . . Construction Impeded . | . . Haulers Reinforced . | . . Active Scanning Responses . | . . Cargo Convoy Interrupts . | . . Stealth | -11 -10 --------- Run | Yrd Mat Distress Signals 1 | . 1 Communications Jammed . | . . Distress Signals . | . . Times Spotted 26 | . 26 Peak Tracking Total 6 | . 6 Tactical Retreats 4 | . 4 Traps | -11 -10 ------- Run | Yrd Mat Traps Triggered 1 | . 1 Indirectly . | . . Trap Hack Attempts . | . . Triggered . | . . Disarmed . | . . Reprogrammed . | . . Reused . | . . Traps Extracted . | . . Installed . | . . Triggered . | . . Machines | -11 -10 ---------- Run | Yrd Mat Machines Disabled . | . . Max in Single Turn . | . . Machines Repaired . | . . Machines Dismantled . | . . Machines Sabotaged . | . . Overloaded Fab Kills . | . . Hacking | -11 -10 --------- Run | Yrd Mat Machines Accessed 2 | . 2 Terminals 2 | . 2 Fabricators . | . . Repair Stations . | . . Recycling Units . | . . Scanalyzers . | . . Garrison Access . | . . Total Hacks 6 | . 6 Successful 3 | . 3 Failed 3 | . 3 Catastrophic . | . . Database Lockouts . | . . Manual 5 | . 5 Terminals 6 | . 6 Fabricators . | . . Repair Stations . | . . Recycling Units . | . . Scanalyzers . | . . Garrison Access . | . . Terminal Hacks 1 | . 1 Zone Layout 1 | . 1 Fabricator Hacks . | . . Repair Station Hacks . | . . Recycling Unit Hacks . | . . Scanalyzer . | . . Garrison Access Hacks . | . . Unauthorized Hacks 2 | . 2 Terminals 2 | . 2 Botnet 2 | . 2 Fabricators . | . . Repair Stations . | . . Recycling Units . | . . Scanalyzers . | . . Garrison Access . | . . Data Cores Recovered . | . . Used . | . . Hacking Detections 2 | . 2 Full Trace Events . | . . Feedback Events . | . . Feedback Blocked . | . . Robot Schematics Acquired . | . . Robots Built . | . . Authchips . | . . Time . | . . Total Robot Build Rating . | . . Part Schematics Acquired . | . . Parts Built . | . . Authchips . | . . Time . | . . Total Part Build Rating . | . . Part Studies Acquired . | . . Parts Repaired . | . . Time . | . . Parts Recycled . | . . Recycled Matter . | . . Retrieved Matter . | . . Retrieved Components . | . . Parts Scanalyzed . | . . Part Schematics Acquired . | . . Parts Damaged . | . . Bothacking | -11 -10 ------------ Run | Yrd Mat Used RIF Installer . | . . Robots Hacked . | . . Non-combat . | . . Combat . | . . Robot Hacks Applied . | . . Relay Couplers Released . | . . Fabnet Peak Effective % . | . . Robots Rewired . | . . Allies Hacked . | . . Hacks Repelled . | . . Allies | -11 -10 -------- Run | Yrd Mat Total Allies . | . . Largest Group . | . . Highest-Rated Group . | . . Highest-Rated Ally . | . . Total Orders . | . . Ally Attacks . | . . Total Damage . | . . Kills . | . . Allies Corrupted . | . . Allies Melted . | . . Intel | -11 -10 ------- Run | Yrd Mat Active Infowar (turns) . | . . Robot Analysis Total . | . . Derelict Logs Recovered . | . . Drone Launches . | . . Drone Recoveries . | . . Exploration | -11 -10 ------------- Run | Yrd Mat Turns Passed 566 | 9 557 Spaces Moved 268 | 3 265 Core . | . . Treads 7 | 2 5 Legs . | . . Wheels 261 | 1 260 Hover . | . . Flight . | . . Fastest Speed 95 | 100 95 Average Speed 115 | 140 115 Slowest Speed 215 | 160 215 Overloaded Moves . | . . Propulsion Burnouts . | . . Robots Hopped . | . . Potential Cave-ins . | . . Cave-ins Triggered . | . . Exploration Rate (%) 16 | 2 30 Regions Visited 1 Branch Regions . Pre-discovered Areas . | . . Known Exits Taken . | . . Unknown Exits Taken 1 | 1 . Scrap Searched . | . . Spaces Dug . | . . Terrain Destroyed . | . . Melee . | . . Projectile . | . . AOE . | . . Terrain Rammed . | . . Walls Destroyed . | . . Machines Disabled . | . . Actions | -11 -10 --------- Run | Yrd Mat Total 387 | 7 380 Wait 31 | . 31 Move 267 | 2 265 Hop . | . . Pick Up 2 | . 2 Fast Attach 1 | . 1 Attach 5 | . 5 Detach 1 | . 1 Swap 5 | 3 2 Drop 3 | 2 1 Fire 72 | . 72 Melee . | . . Ram . | . . Kick . | . . Crush . | . . Escape Stasis . | . . Rewire . | . . Trap . | . . Miscellaneous . | . . Route ------- -11/Scrapyard -10/Materials (discovered 1 exit: [*Mat]) History --------- Turn | Location | Event 4 | -11/Scrapyard | Discovered new exit (range 3) 10 | -11/Scrapyard | Entered Materials 307 | -10/Materials | Build established: Mutant 376 | -10/Materials | Core integrity fell below 50% 434 | -10/Materials | Discovered new exit (range 10) 510 | -10/Materials | Derelicts attacked the area 530 | -10/Materials | Core integrity fell below 20% 567 | -10/Materials | Destroyed by G-34 Mercenary with Small Laser Last Messages --------------- 00537_ Switching to secondary target: G-34 Mercenary. 00537_ K-01 Serf collects debris. 00540_ G-34 Mercenary destroyed. 00543_ K-01 Serf collects debris. 00543_ G-47 Trooper suffers critical hit (Burn). 00545_ R-06 Scavenger collects Aluminum Leg. 00546_ K-01 Serf collects debris. 00546_ G-47 Trooper destroyed. 00546_ Switching to secondary target: G-34 Mercenary. 00548_ R-06 Scavenger collects Ion Engine. 00549_ K-01 Serf collects debris. 00550_ Lgt. Nuclear Core destroyed. 00551_ Overheating: Energy bleed (-23). 00552_ Overheating: System interference. 00552_ Med. Laser temporarily disabled. 00552_ Med. Laser destroyed. 00552_ K-01 Serf collects debris. 00560_ G-34 Mercenary destroyed. Map ----- +----------------------------------------------------+ | ??????????????????????????????????? | | ??????????????????????????????????? | | ??????????????????????????????????? | | ??????????????????????????????????? | | ??????????????????????????????????? | | ??????????????????????????????????? | | ??????????????????????????????????? | | ??????????????????????????????????? | | ??????????????????????????????????? | | ??????????????????????????????????? | | ??????????????????????????????????? | | ??????????????????????????????????? | | ??????????????????????????????????? | | ??????????????????????????????????? | | ?????????????????? ?????????????? | | ?????????????????? #????????????? | | ?????????????????? #????????????? | | ?????????????????? #????????????? | | ?????????????????? #????????????? | | ???????########??? #????????????? | | ???????# [% #??? #????????????? | | ???????# [% T #??# #????????????? | | ???????# =% #??# #????????????? | | ???????# #??# #????????????? | | ???????# * #??# #????????????? | | ???????#= @*= #??# #????????????? | | ???????####g###### ####+####????? | | ???????# %% #????? | | ???????# < #????? | | ???????# =% #????? | | ???????###########+###### #????? | | ??????????????# =* ## ?? ????? | | ????########### """ ## ???????? | | ????# # """ ## ???????? | | ????# # """ ## ???????? | | ????# # ## ???????? | | ????# # """ ## ???????? | | ????# # """ ## ???????? | | ????# # """ ## ???????? | | ????# # =% ## ???????? | | ????# ###/####### ???????? | | ????#######+###?#=#?????# ???????? | | ????????# #### ############????? | | ????????# [= + #????? | | ????????# T ##### ###### | | ????????# ### ##???# """ # | | ????????## ##?# #????# """ += * | | ########## #??# #????# """ =# | | # # #??#%#????# ###### | | # # ####+###### #????? | +----------------------------------------------------+ Best States ------------- Heat Dissipation 25 Energy Generation 14 Energy Capacity 250 Matter Stores 300 Matter Capacity 300 Sight Range 16 Terrain Scan Density 10 Evasion (%) 41 Recoil Reduction 1 Item Schematics ----------------- None Robot Schematics ------------------ None Fabricated ------------ Nothing Repaired ---------- Nothing Studied --------- None Alien Tech Used ----------------- None Achievements -------------- None Challenges ------------ None Game ------ Seed PlasmaNeutrinoWeb Manual? 0 Play Time 00:06:52 Cumulative 98.4 hours Start 2025.11.28 @ 18:55:34 End 2025.11.28 @ 19:01:13 Sessions 1 Manual Loads 0 Difficulty Rogue Special Mode None Game No. 113 Rogue 83 Adventurer 30 Explorer 0 Win Type - Total 1 Types 1/0/0/0/0/0/0/0/0/0 Lore% 51 Gallery% 42 Achievement% 32 Wizard Run 0 Options --------- Layout 2 ASCII 0 Keyboard 1 Movement Arrows Keybinds 0 Fullscreen 1 Font 24/Terminus Map View 50x44 Zoom Use 0% Tactical HUD 1 Map Filters NONE Filters NONE Steam 1 RUN: 99e15201-3e8b-4909-ab0c-f55ad9ebf8c9